fUST/lending_fUST_20250827
["ID","MTS","AMOUNT","RATE_DAILY","PERIOD"]
[381474441,1756230640286,-1124.0,0.00031063,3]
[381474443,1756230640296,-420.0,0.00031063,2]
[381474445,1756230640306,-500.0,0.00031073,5]
[381474447,1756230640316,-3716.58857514,0.00031076,3]
[381474449,1756230640327,-360.0,0.00031096,2]
[381474451,1756230640337,-3511.35,0.000311,7]
[381474453,1756230640347,-216.09257821,0.000311,7]
[381474456,1756230640357,-168.0,0.00031112,2]
[381474458,1756230640366,-529.4218694,0.00031143,2]
[381474460,1756230640376,-1000.0,0.00031147,2]
[381474462,1756230640386,-584.14,0.00031147,2]
[381474464,1756230640397,-500.0,0.00031193,2]
[381474466,1756230640407,-5015.23,0.000312,2]
[381474468,1756230640416,-22398.2945529,0.00031234,2]
[381474470,1756230640426,-168.0,0.00031234,2]
[381474472,1756230640436,-151.0,0.00031244,2]
[381474474,1756230640446,-199.52627049,0.00031244,2]
[381474476,1756230640455,-301.999998,0.00031244,2]
[381474478,1756230640465,-1441.15354801,0.00031305,2]
[381474480,1756230640474,-168.0,0.00031317,2]
[381474482,1756230640484,-160.0,0.00031333,2]
[381474484,1756230640494,-376.39720582,0.00031333,2]
[381474486,1756230640503,-216.09257821,0.00031333,2]
[381474488,1756230640513,-160.0,0.00031333,2]
[381474490,1756230640522,-500.0,0.00031421,5]
[381474492,1756230640532,-264.85274484,0.00031421,5]
[381474494,1756230640542,-334.21974476,0.00031421,5]
[381474496,1756230640551,-500.0,0.00031421,5]
[381474498,1756230640561,-500.0,0.00031467,2]
[381474500,1756230640570,-2806.93,0.00031476,3]
[381474502,1756230640580,-151.0,0.00031518,2]
[381474504,1756230640589,-1441.15354801,0.00031567,2]
[381474506,1756230640600,-460.0,0.00031644,2]
[381474508,1756230640610,-168.0,0.0003166,2]
[381474510,1756230640619,-241.46,0.0003166,120]
[381474512,1756230640629,-500.0,0.00031741,2]
[381474514,1756230640647,-239.0,0.0003175,20]
[381474517,1756230640657,-168.0,0.00031762,2]
[381474519,1756230640666,-1663.83814183,0.00031769,28]
[381474521,1756230640676,-151.0,0.00031792,2]
[381474523,1756230640685,-1441.15354801,0.00031829,2]
[381474525,1756230640695,-15013.57394899,0.000319,2]
[381474527,1756230640704,-151.0,0.000319,10]
[381474529,1756230640716,-151.0,0.000319,13]
[381474532,1756230640726,-12092.91406732,0.00031925,2]
[381474534,1756230640736,-5370.27518676,0.00031929,8]
[381474536,1756230640745,-508.47,0.00031929,2]
[381474538,1756230640754,-91116.07373798,0.00031929,2]
[381474540,1756230640764,-300.0,0.00031929,2]
[381474542,1756230640773,-3875.92425408,0.00031929,2]
[381474544,1756230640782,-808.69065737,0.00031929,2]
[381474546,1756230640793,-254.47108566,0.00031929,2]
[381474548,1756230640802,-296.50649092,0.00031929,2]
[381474550,1756230640811,-326.59973027,0.00031929,2]
[381474552,1756230640821,-291.48246641,0.00031929,2]
[381474554,1756230640830,-51663.48594673,0.00031929,2]
[381474556,1756230640840,-636.43979424,0.00031929,2]
[381474558,1756230640849,-1359.76198746,0.00031929,2]
[381474560,1756230640859,-5980.15968823,0.00031929,7]
[381474562,1756230640868,-156.42290476,0.00031929,2]
[381474564,1756230640877,-14999.99999901,0.00031929,2]
[381474566,1756230640887,-3050.86698451,0.00031929,2]
[381474568,1756230640898,-6284.96557356,0.00031929,2]
[381474570,1756230640907,-157.43153746,0.00031929,2]
[381474572,1756230640917,-100566.9973547,0.00031929,2]
[381474574,1756230640926,-1714.29154178,0.00031929,2]
[381474576,1756230640936,-49857.30073436,0.00031929,2]
[381474578,1756230640945,-1866.86410709,0.00031929,2]
[381474580,1756230640954,-506.95391,0.00031929,2]
[381474582,1756230640964,-40000.0,0.00031929,2]
[381474584,1756230640973,-179.07382891,0.00031929,2]
[381474586,1756230640982,-467.26648546,0.00031929,2]
[381474588,1756230640993,-5469.09801538,0.00031929,2]
[381474861,1756230643559,-1681.1082967,0.00028645,2]
[381474864,1756230643569,-2607.78,0.000308,7]
[381474868,1756230643578,-24941.92960614,0.00031929,2]
[381474871,1756230643588,-981.54782696,0.00031929,2]
[381474874,1756230643598,-188.93270742,0.00031929,2]
[381474877,1756230643607,-1189.90614119,0.00031929,2]
[381474880,1756230643618,-1394.74943124,0.00031929,2]
[381474882,1756230643629,-5886.24249075,0.00031929,2]
[381474885,1756230643642,-10669.87289694,0.00031929,2]
[381474888,1756230643654,-2014.71,0.00031929,2]
[381474893,1756230643665,-650.3763277,0.00031929,2]
[381474896,1756230643674,-903.35770956,0.00031929,2]
[381474899,1756230643683,-476.41356126,0.00031929,2]
[381474901,1756230643693,-2920.0,0.00031929,2]
[381474903,1756230643702,-163.09833019,0.00031929,2]
[381474906,1756230643713,-2023.79512231,0.00031929,2]
[381474909,1756230643722,-652.25758245,0.00031929,2]
[381474912,1756230643732,-384.51654185,0.00031929,2]
[381474914,1756230643742,-201.20492497,0.00031929,2]
[381474916,1756230643752,-579.06340537,0.00031929,5]
[381474918,1756230643762,-2345.27521077,0.00031929,2]
[381474920,1756230643772,-3143.53523687,0.00031929,2]
[381474922,1756230643781,-166.39020439,0.00031929,2]
[381474924,1756230643791,-100120.48660807,0.00031929,2]
[381474926,1756230643801,-150.14884927,0.00031929,2]
[381474928,1756230643811,-214985.82079665,0.00031929,2]
[381474930,1756230643821,-258.20860713,0.00031929,2]
[381474932,1756230643831,-160.4474459,0.00031929,2]
[381474934,1756230643841,-482.88255195,0.00031929,2]
[381474936,1756230643850,-151.0,0.00031929,7]
[381474938,1756230643859,-151.0,0.00031929,7]
[381474940,1756230643870,-151.0,0.00031929,7]
[381474942,1756230643879,-151.0,0.00031929,7]
[381474944,1756230643888,-151.0,0.00031929,7]
[381474946,1756230643897,-155.135601,0.00031929,7]
[381474948,1756230643907,-151.0,0.00031929,7]
[381474950,1756230643915,-154.131593,0.00031929,7]
[381474952,1756230643926,-151.0,0.00031929,7]
[381474954,1756230643935,-153.90498,0.00031929,7]
[381474956,1756230643944,-234.348086,0.00031929,7]
[381474958,1756230643954,-1000.0,0.00031929,2]
[381474960,1756230643964,-1000.0,0.00031929,2]
[381474962,1756230643973,-463.661193,0.00031929,2]
[381474964,1756230643983,-151.0,0.00031929,7]
[381474966,1756230643992,-151.0,0.00031929,7]
[381474968,1756230644002,-151.0,0.00031929,7]
[381474970,1756230644012,-151.0,0.00031929,7]
[381474972,1756230644021,-151.0,0.00031929,7]
[381474974,1756230644031,-151.0,0.00031929,7]
[381474976,1756230644040,-151.0,0.00031929,7]
[381474978,1756230644049,-286.453586,0.00031929,7]
[381474980,1756230644059,-151.0,0.00031929,7]
[381474982,1756230644069,-286.453586,0.00031929,7]
[381474984,1756230644078,-151.0,0.00031929,7]
[381474986,1756230644088,-286.453586,0.00031929,7]
[381474988,1756230644098,-286.453586,0.00031929,7]
[381474990,1756230644107,-151.0,0.00031929,7]
[381474992,1756230644116,-286.453586,0.00031929,7]
[381474994,1756230644126,-286.453586,0.00031929,7]
[381474996,1756230644136,-151.0,0.00031929,7]
[381474998,1756230644146,-286.453586,0.00031929,7]
[381475000,1756230644155,-151.0,0.00031929,7]
[381475002,1756230644164,-286.453586,0.00031929,7]
[381475004,1756230644173,-151.0,0.00031929,7]
[381475006,1756230644182,-286.453586,0.00031929,7]
[381475008,1756230644192,-286.453586,0.00031929,7]
[381475010,1756230644201,-286.453586,0.00031929,7]
[381475012,1756230644211,-286.453586,0.00031929,7]
[381475014,1756230644221,-286.453586,0.00031929,7]
[381475016,1756230644231,-286.453586,0.00031929,7]
[381475018,1756230644241,-286.453586,0.00031929,7]
[381475020,1756230644250,-286.453586,0.00031929,7]
[381475022,1756230644259,-151.0,0.00031929,7]
[381475024,1756230644269,-152.126374,0.00031929,7]
[381475026,1756230644279,-151.0,0.00031929,7]
[381475028,1756230644289,-151.0,0.00031929,7]
[381475030,1756230644298,-151.0,0.00031929,7]
[381475032,1756230644308,-151.0,0.00031929,7]
[381475034,1756230644318,-151.0,0.00031929,7]
[381475036,1756230644328,-151.0,0.00031929,7]
[381475038,1756230644338,-151.0,0.00031929,7]
[381475040,1756230644347,-151.0,0.00031929,7]
[381475042,1756230644357,-151.0,0.00031929,7]
[381475044,1756230644367,-151.0,0.00031929,7]
[381475046,1756230644376,-151.0,0.00031929,7]
[381475048,1756230644387,-151.0,0.00031929,7]
[381475050,1756230644398,-151.0,0.00031929,7]
[381475052,1756230644408,-151.0,0.00031929,7]
[381475054,1756230644418,-151.0,0.00031929,7]
[381475056,1756230644427,-151.0,0.00031929,7]
[381475058,1756230644437,-151.0,0.00031929,7]
[381475060,1756230644447,-151.0,0.00031929,7]
[381475062,1756230644456,-151.0,0.00031929,7]
[381475064,1756230644465,-151.0,0.00031929,7]
[381475066,1756230644474,-151.0,0.00031929,7]
[381475067,1756230644484,-151.0,0.00031929,7]
[381475069,1756230644493,-151.0,0.00031929,7]
[381475071,1756230644503,-151.0,0.00031929,7]
[381475073,1756230644511,-151.0,0.00031929,7]
[381475075,1756230644521,-151.0,0.00031929,7]
[381475077,1756230644530,-271.903658,0.00031929,7]
[381475079,1756230644539,-151.0,0.00031929,7]
[381475081,1756230644548,-151.0,0.00031929,7]
[381475083,1756230644557,-151.0,0.00031929,7]
[381475085,1756230644567,-151.0,0.00031929,7]
[381475087,1756230644576,-151.0,0.00031929,7]
[381475089,1756230644585,-151.0,0.00031929,7]
[381475091,1756230644594,-151.0,0.00031929,7]
[381475093,1756230644604,-151.0,0.00031929,7]
[381475096,1756230644615,-252.933913,0.00031929,7]
[381475098,1756230644624,-151.0,0.00031929,7]
[381475099,1756230644641,-151.0,0.00031929,7]
[381475101,1756230644656,-151.0,0.00031929,7]
[381475103,1756230644665,-151.0,0.00031929,7]
[381475105,1756230644675,-151.0,0.00031929,7]
[381475107,1756230644686,-151.0,0.00031929,7]
[381475109,1756230644696,-151.0,0.00031929,7]
[381475111,1756230644705,-151.0,0.00031929,7]
[381475113,1756230644716,-151.0,0.00031929,7]
[381475115,1756230644728,-151.0,0.00031929,7]
[381475117,1756230644738,-151.0,0.00031929,7]
[381475119,1756230644748,-203.83995,0.00031929,7]
[381475121,1756230644757,-151.0,0.00031929,7]
[381475123,1756230644767,-151.0,0.00031929,7]
[381475125,1756230644776,-236.617384,0.00031929,7]
[381475127,1756230644787,-151.027505,0.00031929,7]
[381475129,1756230644796,-151.0,0.00031929,7]
[381475131,1756230644805,-151.0,0.00031929,7]
[381475133,1756230644814,-151.0,0.00031929,7]
[381475135,1756230644824,-151.0,0.00031929,7]
[381475137,1756230644833,-151.0,0.00031929,7]
[381475139,1756230644842,-151.0,0.00031929,7]
[381475141,1756230644851,-151.0,0.00031929,7]
[381475143,1756230644861,-151.0,0.00031929,7]
[381475145,1756230644870,-151.0,0.00031929,7]
[381475147,1756230644880,-180.683106,0.00031929,7]
[381475149,1756230644889,-151.0,0.00031929,7]
[381475151,1756230644900,-151.0,0.00031929,7]
[381475153,1756230644909,-151.0,0.00031929,7]
[381475155,1756230644919,-151.0,0.00031929,7]
[381475157,1756230644928,-214.642204,0.00031929,7]
[381475159,1756230644937,-151.0,0.00031929,7]
[381475161,1756230644946,-151.0,0.00031929,7]
[381475163,1756230644955,-151.0,0.00031929,7]
[381475165,1756230644964,-154.340157,0.00031929,7]
[381475167,1756230644973,-151.0,0.00031929,7]
[381475169,1756230644982,-151.0,0.00031929,7]
[381475171,1756230644991,-151.0,0.00031929,7]
[381475173,1756230645000,-151.0,0.00031929,7]
[381475175,1756230645010,-151.0,0.00031929,7]
[381475177,1756230645019,-151.0,0.00031929,7]
[381475179,1756230645029,-151.0,0.00031929,7]
[381475181,1756230645039,-151.0,0.00031929,7]
[381475183,1756230645049,-274.453044,0.00031929,7]
[381475185,1756230645058,-169.147543,0.00031929,7]
[381475186,1756230645068,-151.0,0.00031929,7]
[381475189,1756230645078,-151.0,0.00031929,7]
[381475191,1756230645087,-151.0,0.00031929,7]
[381475193,1756230645096,-151.0,0.00031929,7]
[381475195,1756230645106,-151.0,0.00031929,7]
[381475197,1756230645116,-154.057557,0.00031929,7]
[381475199,1756230645125,-151.0,0.00031929,7]
[381475201,1756230645135,-151.0,0.00031929,7]
[381475203,1756230645144,-151.0,0.00031929,7]
[381475205,1756230645154,-151.0,0.00031929,7]
[381475206,1756230645163,-151.0,0.00031929,7]
[381475208,1756230645172,-151.0,0.00031929,7]
[381475210,1756230645182,-151.0,0.00031929,7]
[381475212,1756230645191,-151.0,0.00031929,7]
[381475214,1756230645200,-151.0,0.00031929,7]
[381475216,1756230645210,-151.0,0.00031929,7]
[381475218,1756230645221,-271.499325,0.00031929,7]
[381475220,1756230645230,-245.09762,0.00031929,7]
[381475222,1756230645239,-151.0,0.00031929,7]
[381475224,1756230645249,-151.0,0.00031929,7]
[381475226,1756230645259,-151.0,0.00031929,7]
[381475228,1756230645268,-1000.0,0.0003195,2]
[381475230,1756230645278,-500.0,0.00031973,5]
[381475232,1756230645287,-500.0,0.00031973,5]
[381475234,1756230645296,-1532.10708423,0.00031986,17]
[381475236,1756230645306,-205.43238204,0.0003199,2]
[381475239,1756230645316,-91418.25972858,0.00032,7]
[381475240,1756230645325,-467.06,0.00032,2]
[381475243,1756230645335,-151.0,0.00032,7]
[381475245,1756230645345,-151.0,0.00032,7]
[381475247,1756230645354,-245.069521,0.00032,7]
[381475248,1756230645364,-151.0,0.00032,7]
[381475251,1756230645374,-151.0,0.00032,7]
[381475252,1756230645383,-216.001705,0.00032,7]
[381475254,1756230645392,-151.0,0.00032,7]
[381475256,1756230645404,-151.0,0.00032,7]
[381475258,1756230645413,-151.0,0.00032,7]
[381475260,1756230645422,-3778.4651674,0.00032,5]
[381475263,1756230645432,-151.0,0.00032,7]
[381475264,1756230645441,-153.66128,0.00032,7]
[381475266,1756230645450,-199.496,0.00032,7]
[381475269,1756230645460,-153.947959,0.00032,7]
[381475271,1756230645469,-151.0,0.00032,7]
[381475273,1756230645478,-151.0,0.00032,7]
[381475275,1756230645487,-151.0,0.00032,7]
[381475276,1756230645497,-151.0,0.00032,7]
[381475278,1756230645507,-151.0,0.00032,7]
[381475280,1756230645516,-160.14319,0.00032,7]
[381475282,1756230645525,-155.217476,0.00032,7]
[381475285,1756230645536,-151.0,0.00032,7]
[381475286,1756230645545,-151.0,0.00032,7]
[381475289,1756230645555,-182.416024,0.00032,7]
[381475291,1756230645564,-182.416024,0.00032,7]
[381475293,1756230645574,-182.416024,0.00032,7]
[381475295,1756230645583,-182.416024,0.00032,7]
[381475297,1756230645592,-151.0,0.00032,7]
[381475299,1756230645601,-151.0,0.00032,7]
[381475301,1756230645611,-151.0,0.00032,7]
[381475303,1756230645620,-151.0,0.00032,7]
[381475305,1756230645629,-151.0,0.00032,7]
[381475306,1756230645642,-151.0,0.00032,7]
[381475308,1756230645651,-151.0,0.00032,7]
[381475310,1756230645660,-151.0,0.00032,7]
[381475313,1756230645670,-151.0,0.00032,7]
[381475315,1756230645681,-151.0,0.00032,7]
[381475317,1756230645691,-151.0,0.00032,7]
[381475319,1756230645701,-151.0,0.00032,7]
[381475321,1756230645711,-151.0,0.00032,7]
[381475323,1756230645721,-151.0,0.00032,7]
[381475325,1756230645730,-151.0,0.00032,7]
[381475327,1756230645739,-200.95465442,0.00032,2]
[381475329,1756230645749,-500.0,0.00032015,2]
[381475331,1756230645758,-151.0,0.00032025,7]
[381475333,1756230645768,-151.0,0.00032025,7]
[381475335,1756230645777,-151.0,0.00032025,7]
[381475337,1756230645787,-151.0,0.00032025,7]
[381475339,1756230645797,-151.0,0.00032025,7]
[381475341,1756230645807,-151.0,0.00032025,7]
[381475343,1756230645816,-151.0,0.00032025,7]
[381475345,1756230645826,-151.0,0.00032025,7]
[381475347,1756230645836,-151.0,0.00032025,7]
[381475349,1756230645845,-151.0,0.00032025,7]
[381475351,1756230645854,-151.0,0.00032025,7]
[381475353,1756230645864,-151.0,0.00032025,7]
[381475355,1756230645874,-151.0,0.00032025,7]
[381475357,1756230645883,-151.0,0.00032025,7]
[381475359,1756230645893,-151.0,0.00032025,7]
[381475360,1756230645904,-151.0,0.00032025,7]
[381475361,1756230645915,-151.0,0.00032025,7]
[381475362,1756230645924,-151.0,0.00032025,7]
[381475363,1756230645933,-151.0,0.00032025,7]
[381475364,1756230645943,-151.0,0.00032025,7]
[381475365,1756230645953,-155.99209,0.00032025,7]
[381475366,1756230645962,-152.921191,0.00032025,7]
[381475367,1756230645972,-151.0,0.00032025,7]
[381475368,1756230645982,-151.0,0.00032025,7]
[381475369,1756230645991,-151.0,0.00032025,7]
[381475370,1756230646000,-151.0,0.00032025,7]
[381475371,1756230646010,-153.769585,0.00032025,7]
[381475373,1756230646020,-182.416024,0.00032025,7]
[381475375,1756230646030,-182.416024,0.00032025,7]
[381475377,1756230646039,-182.416024,0.00032025,7]
[381475379,1756230646049,-182.416024,0.00032025,7]
[381475381,1756230646059,-182.416024,0.00032025,7]
[381475384,1756230646069,-182.416024,0.00032025,7]
[381475386,1756230646078,-182.416024,0.00032025,7]
[381475388,1756230646087,-182.416024,0.00032025,7]
[381475390,1756230646098,-182.416024,0.00032025,7]
[381475392,1756230646108,-182.416024,0.00032025,7]
[381475394,1756230646117,-182.416024,0.00032025,7]
[381475396,1756230646127,-182.416024,0.00032025,7]
[381475398,1756230646137,-151.0,0.00032025,7]
[381475400,1756230646147,-151.0,0.00032025,7]
[381475402,1756230646159,-151.0,0.00032025,7]
[381475404,1756230646168,-151.0,0.00032025,7]
[381475406,1756230646178,-151.0,0.00032025,7]
[381475409,1756230646188,-151.0,0.00032025,7]
[381475411,1756230646199,-151.0,0.00032025,7]
[381475413,1756230646209,-151.0,0.00032025,7]
[381475415,1756230646219,-151.0,0.00032025,7]
[381475417,1756230646230,-151.0,0.00032025,7]
[381475419,1756230646239,-151.0,0.00032025,7]
[381475421,1756230646249,-151.0,0.00032025,7]
[381475423,1756230646259,-151.0,0.00032025,7]
[381475425,1756230646269,-151.0,0.00032025,7]
[381475427,1756230646280,-151.0,0.00032025,7]
[381475429,1756230646290,-151.0,0.00032025,7]
[381475431,1756230646299,-151.0,0.00032025,7]
[381475433,1756230646309,-151.0,0.00032025,7]
[381475435,1756230646319,-151.0,0.00032025,7]
[381475437,1756230646329,-151.0,0.00032025,7]
[381475439,1756230646340,-151.0,0.00032025,7]
[381475441,1756230646349,-151.0,0.00032025,7]
[381475444,1756230646360,-151.0,0.00032025,7]
[381475446,1756230646369,-151.0,0.00032025,7]
[381475448,1756230646379,-151.0,0.00032025,7]
[381475450,1756230646389,-151.0,0.00032025,7]
[381475452,1756230646399,-151.0,0.00032025,7]
[381475454,1756230646409,-151.0,0.00032025,7]
[381475456,1756230646419,-154.767757,0.00032025,7]
[381475458,1756230646429,-151.0,0.00032025,7]
[381475460,1756230646439,-151.0,0.00032025,7]
[381475462,1756230646449,-151.0,0.00032025,7]
[381475464,1756230646459,-151.0,0.00032025,7]
[381475466,1756230646468,-151.0,0.00032025,7]
[381475468,1756230646479,-151.0,0.00032025,7]
[381475470,1756230646488,-211.787526,0.00032025,7]
[381475473,1756230646498,-152.966135,0.00032027,7]
[381475475,1756230646509,-151.0,0.00032027,7]
[381475477,1756230646518,-151.0,0.00032027,7]
[381475479,1756230646528,-151.0,0.00032027,7]
[381475481,1756230646538,-151.0,0.00032027,7]
[381475483,1756230646547,-151.0,0.00032027,7]
[381475485,1756230646557,-195.321254,0.00032027,7]
[381475487,1756230646567,-151.0,0.00032027,7]
[381475489,1756230646576,-151.0,0.00032027,7]
[381475491,1756230646587,-151.0,0.00032027,7]
[381475493,1756230646597,-151.0,0.00032027,7]
[381475495,1756230646607,-151.0,0.00032027,7]
[381475497,1756230646617,-151.0,0.00032027,7]
[381475500,1756230646628,-152.310121,0.00032027,7]
[381475502,1756230646648,-151.0,0.00032027,7]
[381475504,1756230646659,-151.0,0.00032027,7]
[381475506,1756230646671,-151.0,0.00032027,7]
[381475508,1756230646683,-151.0,0.00032027,7]
[381475510,1756230646693,-151.0,0.00032027,7]
[381475512,1756230646703,-151.0,0.00032027,7]
[381475514,1756230646714,-151.0,0.00032027,7]
[381475516,1756230646724,-151.0,0.00032027,7]
[381475518,1756230646734,-151.0,0.00032027,7]
[381475520,1756230646743,-151.0,0.00032027,7]
[381475522,1756230646753,-151.0,0.00032027,7]
[381475524,1756230646765,-151.0,0.00032027,7]
[381475527,1756230646775,-281.883324,0.00032027,7]
[381475529,1756230646784,-151.0,0.00032027,7]
[381475531,1756230646794,-151.0,0.00032027,7]
[381475533,1756230646804,-151.0,0.00032027,7]
[381475535,1756230646814,-151.0,0.00032027,7]
[381475537,1756230646823,-151.0,0.00032027,7]
[381475539,1756230646834,-151.0,0.00032027,7]
[381475541,1756230646844,-151.0,0.00032027,7]
[381475543,1756230646853,-151.0,0.00032027,7]
[381475545,1756230646863,-151.0,0.00032027,7]
[381475547,1756230646873,-151.0,0.00032027,7]
[381475549,1756230646883,-151.0,0.00032027,7]
[381475552,1756230646893,-151.0,0.00032027,7]
[381475554,1756230646902,-151.0,0.00032027,7]
[381475556,1756230646912,-151.0,0.00032027,7]
[381475558,1756230646921,-151.0,0.00032027,7]
[381475560,1756230646931,-151.0,0.00032027,7]
[381475562,1756230646941,-151.0,0.00032027,7]
[381475564,1756230646951,-151.0,0.00032027,7]
[381475566,1756230646961,-151.0,0.00032027,7]
[381475568,1756230646971,-151.0,0.00032027,7]
[381475570,1756230646981,-151.0,0.00032027,7]
[381475572,1756230646990,-151.0,0.00032027,7]
[381475574,1756230647000,-151.0,0.00032027,7]
[381475576,1756230647012,-237.314024,0.00032027,7]
[381475578,1756230647022,-151.0,0.00032027,7]
[381475580,1756230647031,-153.736487,0.00032027,7]
[381475582,1756230647041,-151.0,0.00032027,7]
[381475584,1756230647050,-151.0,0.00032027,7]
[381475586,1756230647060,-250.625355,0.0003205,7]
[381475589,1756230647070,-151.0,0.0003205,7]
[381475591,1756230647079,-151.0,0.0003205,7]
[381475593,1756230647089,-151.0,0.0003205,7]
[381475595,1756230647099,-151.0,0.0003205,7]
[381475597,1756230647108,-151.0,0.0003205,7]
[381475599,1756230647118,-151.0,0.0003205,7]
[381475601,1756230647127,-151.0,0.0003205,7]
[381475603,1756230647137,-170.40887,0.0003205,7]
[381475605,1756230647147,-151.0,0.00032066,2]
[381475607,1756230647158,-200.0,0.0003208,120]
[381475609,1756230647168,-2607.78,0.000321,7]
[381475611,1756230647178,-560.0,0.00032192,2]
[381475613,1756230647188,-168.0,0.00032241,2]
[381475615,1756230647198,-168.0,0.00032246,2]
[381475617,1756230647208,-500.0,0.00032289,2]
[381475620,1756230647218,-29637.95,0.000323,7]
[381475622,1756230647228,-201.93286099,0.0003234,2]
[381475624,1756230647238,-1615.9,0.00032379,3]
[381475626,1756230647248,-807.96,0.00032379,3]
[381475628,1756230647260,-151.0,0.00032379,7]
[381475630,1756230647269,-151.0,0.00032379,7]
[381475632,1756230647280,-262.640062,0.00032379,7]
[381475634,1756230647290,-403.98,0.0003238,3]
[381475636,1756230647299,-232.53539143,0.0003238,3]
[381475639,1756230647311,-678.9475608,0.0003238,3]
[381475641,1756230647320,-217.18350301,0.0003238,3]
[381475643,1756230647330,-216.09257821,0.000324,3]
[381475645,1756230647339,-151.0,0.000324,7]
[381475647,1756230647350,-151.0,0.000324,7]
[381475649,1756230647359,-172.473327,0.000324,7]
[381475651,1756230647369,-151.0,0.000324,7]
[381475653,1756230647380,-151.0,0.000324,7]
[381475655,1756230647389,-151.0,0.000324,7]
[381475657,1756230647399,-151.0,0.000324,7]
[381475659,1756230647410,-151.0,0.000324,7]
[381475661,1756230647420,-151.0,0.000324,7]
[381475664,1756230647430,-151.0,0.000324,7]
[381475666,1756230647440,-151.0,0.000324,7]
[381475668,1756230647450,-151.0,0.000324,7]
[381475670,1756230647459,-151.0,0.000324,7]
[381475672,1756230647468,-151.0,0.000324,7]
[381475674,1756230647478,-151.0,0.000324,7]
[381475676,1756230647487,-151.0,0.000324,7]
[381475678,1756230647497,-500.0,0.00032521,5]
[381475680,1756230647507,-505.01465439,0.00032521,5]
[381475682,1756230647516,-500.0,0.00032563,2]
[381475684,1756230647526,-3511.35,0.000326,7]
[381475686,1756230647535,-153.0,0.00032638,2]
[381475688,1756230647545,-168.0,0.00032651,2]
[381475690,1756230647555,-660.0,0.0003274,2]
[381475693,1756230647565,-168.0,0.000328,2]
[381475695,1756230647575,-168.0,0.00032826,2]
[381475697,1756230647585,-500.0,0.00032837,2]
[381475699,1756230647594,-5015.23,0.000329,14]
[381475701,1756230647604,-151.0,0.000329,7]
[381475703,1756230647614,-151.0,0.000329,7]
[381475705,1756230647623,-286.453586,0.000329,7]
[381475707,1756230647633,-286.453586,0.000329,7]
[381475709,1756230647645,-271.677413,0.000329,7]
[381475711,1756230647656,-286.453586,0.000329,7]
[381475713,1756230647666,-286.45357862,0.000329,7]
[381475715,1756230647675,-168.0,0.00032962,2]
[381475717,1756230647686,-179.0,0.00033,14]
[381475720,1756230647696,-500.0,0.00033111,2]
[381475722,1756230647706,-400.317836,0.00033165,2]
[381475724,1756230647718,-760.0,0.00033288,2]
[381475726,1756230647729,-500.0,0.00033385,2]
[381475728,1756230647739,-587.0,0.00033521,2]
[381475730,1756230647748,-500.0,0.00033659,2]